fUSD/lending_fUSD_20260504
["ID","MTS","AMOUNT","RATE_DAILY","PERIOD"]
[421554693,1777870238000,-994.5305804,0.00017853,2]
[421554685,1777870238000,-994.5305804,0.00017853,2]
[421554687,1777870238000,-994.5305804,0.00017853,2]
[421554683,1777870238000,-994.5305804,0.00017853,2]
[421554684,1777870238000,-994.5305804,0.00017853,2]
[421554682,1777870238000,-994.5305804,0.00017853,2]
[421554674,1777870238000,-994.5305804,0.00017853,2]
[421554677,1777870238000,-994.5305804,0.00017853,2]
[421554680,1777870238000,-994.5305804,0.00017853,2]
[421554679,1777870238000,-994.5305804,0.00017853,2]
[421554689,1777870238000,-994.5305804,0.00017853,2]
[421554688,1777870238000,-994.5305804,0.00017853,2]
[421554678,1777870238000,-994.5305804,0.00017853,2]
[421554675,1777870238000,-994.5305804,0.00017853,2]
[421554676,1777870238000,-994.5305804,0.00017853,2]
[421554700,1777870238000,-994.5305804,0.00017853,2]
[421554686,1777870238000,-994.5305804,0.00017853,2]
[421554695,1777870238000,-994.5305804,0.00017853,2]
[421554694,1777870238000,-994.5305804,0.00017853,2]
[421554701,1777870238000,-994.5305804,0.00017853,2]
[421554716,1777870238000,-393.11933115,0.00017853,2]
[421554712,1777870238000,-276.47085549,0.00017853,2]
[421554711,1777870238000,-994.5305804,0.00017853,2]
[421554713,1777870238000,-718.05972491,0.00017853,2]
[421554710,1777870238000,-994.5305804,0.00017853,2]
[421554709,1777870238000,-327.09393335,0.00017853,2]
[421554714,1777870238000,-807.86123293,0.00017853,2]
[421554691,1777870238000,-994.5305804,0.00017853,2]
[421554708,1777870238000,-667.43664705,0.00017853,2]
[421554707,1777870238000,-382.10135294,0.00017853,2]
[421554706,1777870238000,-598.26313241,0.00017853,2]
[421554704,1777870238000,-994.5305804,0.00017853,2]
[421554703,1777870238000,-994.5305804,0.00017853,2]
[421554702,1777870238000,-994.5305804,0.00017853,2]
[421554715,1777870238000,-186.66934747,0.00017853,2]
[421554697,1777870238000,-317.64351434,0.00017853,2]
[421554696,1777870238000,-994.5305804,0.00017853,2]
[421554698,1777870238000,-318.80838251,0.00017853,2]
[421554699,1777870238000,-358.07868355,0.00017853,2]
[421554705,1777870238000,-14.16609505,0.00017853,2]
[421554721,1777870240000,-601.41124925,0.00017853,2]
[421554723,1777870240000,-994.5305804,0.00017853,2]
[421554722,1777870240000,-994.5305804,0.00017853,2]
[421554726,1777870240000,-994.5305804,0.00017853,2]
[421554732,1777870240000,-1455.83665154,0.00018334,2]
[421554733,1777870240000,-471.01386734,0.00018334,2]
[421554727,1777870240000,-994.5305804,0.00017853,2]
[421554730,1777870240000,-829.67010334,0.00018334,2]
[421554729,1777870240000,-48993.48432967,0.00018334,2]
[421554731,1777870240000,-380.52932165,0.00018334,2]
[421554724,1777870240000,-994.5305804,0.00017853,2]
[421554728,1777870240000,-1782.19025772,0.00018334,2]
[421554725,1777870240000,-994.5305804,0.00017853,2]
[421554757,1777870244000,-556.3861,0.00017954,2]
[421554758,1777870244000,-1906.6139,0.00017954,2]
[421554760,1777870244000,-65.89095473,0.00018334,2]
[421554761,1777870244000,-3605.26040386,0.00018334,2]
[421554759,1777870244000,-6856.79037136,0.00018334,2]
[421554788,1777870246000,-2182.8295045,0.00018437,2]
[421554798,1777870246000,-154.11,0.00018974,2]
[421554795,1777870246000,-285.32768,0.0001881,2]
[421554791,1777870246000,-1575.93,0.00018533,2]
[421554790,1777870246000,-7299.0101482,0.00018437,2]
[421554787,1777870246000,-4645.5178843,0.00018437,2]
[421554793,1777870246000,-150.99,0.00018533,2]
[421554786,1777870246000,-172.4978129,0.00018437,2]
[421554781,1777870246000,-22365.77093927,0.00018334,2]
[421554789,1777870246000,-10389.5689751,0.00018437,2]
[421554783,1777870246000,-200.0,0.00018394,2]
[421554785,1777870246000,-998.0,0.0001841,2]
[421554792,1777870246000,-950.45,0.00018533,2]
[421554782,1777870246000,-2500.0,0.00018336,2]
[421554780,1777870246000,-7149.4837034,0.00018334,2]
[421554800,1777870246000,-2309.0,0.00019,2]
[421554784,1777870246000,-2500.0,0.00018398,2]
[421554805,1777870246000,-276.0,0.00019024,2]
[421554814,1777870246000,-250.0,0.00019178,2]
[421554801,1777870246000,-285.32767,0.00019,2]
[421554812,1777870246000,-250.0,0.00019178,2]
[421554813,1777870246000,-250.0,0.00019178,2]
[421554816,1777870246000,-8168.69923466,0.00019178,2]
[421554811,1777870246000,-192.68084185,0.00019178,2]
[421554815,1777870246000,-259.75860932,0.00019178,2]
[421554810,1777870246000,-150.0,0.00019178,2]
[421554809,1777870246000,-150.0,0.00019178,2]
[421554808,1777870246000,-150.0,0.00019178,2]
[421554804,1777870246000,-285.32768,0.00019,2]
[421554796,1777870246000,-228.0,0.00018815,2]
[421554806,1777870246000,-500.0,0.00019099,2]
[421554802,1777870246000,-285.32768,0.00019,2]
[421554803,1777870246000,-285.32767,0.00019,2]
[421554794,1777870246000,-285.32767,0.0001881,2]
[421554799,1777870246000,-151.0,0.00019,2]
[421554807,1777870246000,-435.04,0.00019111,2]
[421554797,1777870246000,-167.18,0.00018911,2]
[421554817,1777870267000,304.68752,7.945e-05,2]
[421554820,1777870313000,280.0,8.219e-05,2]
[421554828,1777870621000,339.0,0.00010673,2]
[421554829,1777870766000,280.0,8.219e-05,2]
[421554833,1777871096000,628.246,0.00030136,120]
[421554838,1777871161000,226.0,0.00010673,2]
[421554839,1777871164000,196.23,7.816e-05,2]
[421554842,1777871217000,280.0,8.219e-05,2]
[421554843,1777871234000,321.58,0.00030137,120]
[421554844,1777871253000,527.18243475,7e-05,2]
[421554845,1777871341000,151.0,0.00010673,2]
[421554846,1777871361000,-289.0,0.00010781,2]
[421554847,1777871361000,-301.21727862,0.00010781,2]
[421554848,1777871361000,-151.0,0.00011303,2]
[421554849,1777871361000,-250.0,0.00011859,2]
[421554851,1777871361000,-151.35556184,0.00011869,2]
[421554850,1777871361000,-602.43455724,0.00011859,2]
[421554854,1777871430000,237.0,0.00030136,120]
[421554859,1777871431000,-300.0,0.00013972,2]
[421554856,1777871431000,-280.0,0.00013225,2]
[421554857,1777871431000,-323.0,0.00013225,2]
[421554858,1777871431000,-300.0,0.00013972,2]
[421554860,1777871431000,-293.21801722,0.00013972,2]
[421554864,1777871431000,-300.0,0.00014068,2]
[421554863,1777871431000,-300.0,0.00014068,2]
[421554862,1777871431000,-300.0,0.00014068,2]
[421554865,1777871431000,-307.64589904,0.00014068,2]
[421554866,1777871431000,-205.57782508,0.00014068,2]
[421554861,1777871431000,-250.0,0.00014,2]
[421554908,1777871432000,-160.0,0.00016444,2]
[421554907,1777871432000,-831.7,0.00016438,2]
[421554909,1777871432000,-162.48539177,0.00016444,2]
[421554901,1777871432000,-300.0,0.00016,2]
[421554905,1777871432000,-172.68,0.00016225,2]
[421554903,1777871432000,-197.08,0.00016117,2]
[421554902,1777871432000,-500.0,0.00016026,2]
[421554900,1777871432000,-166.66,0.00015926,2]
[421554899,1777871432000,-6478.21,0.00015873,2]
[421554898,1777871432000,-798.01590182,0.00015716,2]
[421554904,1777871432000,-300.0,0.00016224,2]
[421554906,1777871432000,-166.66,0.00016241,2]
[421554910,1777871432000,-166.66,0.00016556,2]
[421554914,1777871432000,-152.0,0.00016668,7]
[421554912,1777871432000,-152.0,0.00016663,7]
[421554916,1777871432000,-500.0,0.00016917,2]
[421554926,1777871432000,-196.814,0.00017519,2]
[421554929,1777871432000,-2500.0,0.000178,2]
[421554927,1777871432000,-280.0,0.00017519,2]
[421554931,1777871432000,-2864.42309603,0.00017828,2]
[421554915,1777871432000,-477.28,0.00016856,2]
[421554933,1777871432000,-2500.0,0.0001786,2]
[421554920,1777871432000,-1680.0,0.00017263,2]
[421554917,1777871432000,-420.0,0.00017177,2]
[421554889,1777871432000,-1200.0,0.00015706,2]
[421554913,1777871432000,-152.0,0.00016668,7]
[421554890,1777871432000,-300.0,0.00015706,2]
[421554873,1777871432000,-300.0,0.00014547,2]
[421554896,1777871432000,-462.00816414,0.00015707,2]
[421554872,1777871432000,-2500.0,0.00014547,2]
[421554870,1777871432000,-2500.0,0.00014322,2]
[421554867,1777871432000,-250.0,0.00014245,2]
[421554868,1777871432000,-2500.0,0.00014322,2]
[421554871,1777871432000,-2500.0,0.00014322,2]
[421554869,1777871432000,-2500.0,0.00014322,2]
[421554922,1777871432000,-2000.0,0.00017517,2]
[421554874,1777871432000,-150.0,0.00014547,2]
[421554878,1777871432000,-151.20955361,0.00015159,2]
[421554876,1777871432000,-300.0,0.00014547,2]
[421554877,1777871432000,-166.66,0.0001498,2]
[421554879,1777871432000,-166.66,0.00015295,2]
[421554880,1777871432000,-240.92902107,0.00015472,2]
[421554883,1777871432000,-200.0,0.000156,2]
[421554875,1777871432000,-301.21727862,0.00014547,2]
[421554884,1777871432000,-166.66,0.0001561,2]
[421554882,1777871432000,-150.0,0.00015572,2]
[421554881,1777871432000,-2000.0,0.00015571,2]
[421554885,1777871432000,-196.23,0.00015632,2]
[421554886,1777871432000,-1699.23,0.00015639,2]
[421554888,1777871432000,-240.0,0.00015706,2]
[421554893,1777871432000,-500.0,0.00015707,2]
[421554892,1777871432000,-500.0,0.00015707,2]
[421554897,1777871432000,-578.20924308,0.00015716,2]
[421554891,1777871432000,-300.0,0.00015706,2]
[421554894,1777871432000,-500.0,0.00015707,2]
[421554887,1777871432000,-200.0,0.00015656,2]
[421554895,1777871432000,-500.0,0.00015707,2]
[421554924,1777871432000,-1340.618,0.00017519,2]
[421554918,1777871432000,-361.0,0.00017177,2]
[421554935,1777871432000,-2709.30010527,0.00017861,2]
[421554985,1777871432000,-587.0,0.00018786,2]
[421554987,1777871432000,-150.0,0.00018874,2]
[421554980,1777871432000,-599.60298507,0.00018455,2]
[421554978,1777871432000,-18683.130013,0.00018454,2]
[421554984,1777871432000,-200.0,0.00018752,2]
[421554979,1777871432000,-3963.5416107,0.00018454,2]
[421554976,1777871432000,-34490.8732896,0.00018454,2]
[421554986,1777871432000,-150.0,0.00018874,2]
[421554983,1777871432000,-1009.90750466,0.000187,2]
[421554982,1777871432000,-1009.90750466,0.000185,2]
[421554981,1777871432000,-505.68510712,0.00018473,2]
[421554989,1777871432000,-492.475028,0.00018891,2]
[421554999,1777871432000,-500.0,0.00018904,2]
[421554988,1777871432000,-150.0,0.00018874,2]
[421554991,1777871432000,-500.0,0.00018904,2]
[421554990,1777871432000,-500.0,0.00018904,2]
[421554992,1777871432000,-500.0,0.00018904,2]
[421554993,1777871432000,-500.0,0.00018904,2]
[421554995,1777871432000,-500.0,0.00018904,2]
[421554997,1777871432000,-500.0,0.00018904,2]
[421554996,1777871432000,-150.0,0.00018904,2]
[421554998,1777871432000,-500.0,0.00018904,2]
[421554994,1777871432000,-208.07839763,0.00018904,2]
[421555000,1777871432000,-500.0,0.00018904,2]
[421555001,1777871432000,-500.0,0.00018904,2]
[421554947,1777871432000,-500.0,0.00017899,2]
[421555003,1777871432000,-500.0,0.00018904,2]
[421554977,1777871432000,-1267.8418662,0.00018454,2]
[421554975,1777871432000,-831.7,0.0001841,2]
[421555002,1777871432000,-500.0,0.00018904,2]
[421554971,1777871432000,-477.28,0.00018226,2]
[421554974,1777871432000,-1009.90750466,0.000184,2]
[421554952,1777871432000,-2463.0,0.00017903,2]
[421554953,1777871432000,-928.0,0.00017903,2]
[421554938,1777871432000,-500.0,0.00017861,2]
[421554954,1777871432000,-204.71,0.00017972,2]
[421554941,1777871432000,-2947.64686292,0.0001787,2]
[421554940,1777871432000,-4066.20700411,0.0001787,2]
[421554943,1777871432000,-152.0,0.00017885,7]
[421554945,1777871432000,-500.0,0.00017899,2]
[421554966,1777871432000,-1009.90750466,0.00018,2]
[421554956,1777871432000,-194.343,0.00017972,2]
[421554955,1777871432000,-250.0,0.00017972,2]
[421554957,1777871432000,-166.588,0.00017972,2]
[421554950,1777871432000,-457032.2827,0.000179,2]
[421554962,1777871432000,-1351.0,0.00017972,2]
[421554972,1777871432000,-323.0,0.00018242,2]
[421554968,1777871432000,-274.0,0.00018091,2]
[421554973,1777871432000,-390.0,0.0001839,2]
[421554969,1777871432000,-1009.90750466,0.000182,2]
[421554958,1777871432000,-151.0,0.00017972,2]
[421554967,1777871432000,-350.0,0.00018,2]
[421554970,1777871432000,-10043.11094307,0.000182,2]
[421554959,1777871432000,-150.098,0.00017972,2]
[421554960,1777871432000,-624.0,0.00017972,2]
[421554964,1777871432000,-1221.0,0.00017972,2]
[421554961,1777871432000,-3535.0,0.00017972,2]
[421554963,1777871432000,-1267.0,0.00017972,2]
[421554965,1777871432000,-157.6,0.00017989,2]
[421555045,1777871433000,-411.0,0.00019088,2]
[421555041,1777871433000,-411.0,0.00019048,2]
[421555043,1777871433000,-411.0,0.00019069,2]
[421555042,1777871433000,-411.0,0.00019067,2]
[421555036,1777871433000,-411.0,0.00019005,2]
[421555038,1777871433000,-411.0,0.00019019,2]
[421555040,1777871433000,-411.0,0.0001904,2]
[421555037,1777871433000,-559.07721061,0.00019015,2]
[421555035,1777871433000,-411.0,0.00018991,2]
[421555046,1777871433000,-411.0,0.00019089,2]
[421555039,1777871433000,-411.0,0.00019023,2]
[421555044,1777871433000,-411.0,0.00019079,2]
[421555048,1777871433000,-411.0,0.00019104,2]
[421555049,1777871433000,-411.0,0.00019104,2]
[421555056,1777871433000,-500.0,0.00019177,2]
[421555055,1777871433000,-411.0,0.00019174,2]
[421555050,1777871433000,-500.0,0.00019106,2]
[421555052,1777871433000,-411.0,0.0001913,2]
[421555053,1777871433000,-7149.4837,0.00019139,2]
[421555057,1777871433000,-182.81183547,0.00019178,2]
[421555054,1777871433000,-411.0,0.00019151,2]
[421555051,1777871433000,-411.0,0.0001913,2]
[421555068,1777871433000,-362.664015,0.000196,7]
[421555067,1777871433000,-925.0,0.000195,2]
[421555032,1777871433000,-2351.0,0.00018975,2]
[421555047,1777871433000,-411.0,0.00019091,2]
[421555030,1777871433000,-411.0,0.00018936,2]
[421555015,1777871433000,-500.0,0.00018904,2]
[421555027,1777871433000,-505.44118694,0.00018904,2]
[421555005,1777871433000,-500.0,0.00018904,2]
[421555004,1777871433000,-500.0,0.00018904,2]
[421555008,1777871433000,-500.0,0.00018904,2]
[421555006,1777871433000,-500.0,0.00018904,2]
[421555007,1777871433000,-500.0,0.00018904,2]
[421555009,1777871433000,-500.0,0.00018904,2]
[421555010,1777871433000,-500.0,0.00018904,2]
[421555012,1777871433000,-500.0,0.00018904,2]
[421555022,1777871433000,-500.0,0.00018904,2]
[421555011,1777871433000,-500.0,0.00018904,2]
[421555016,1777871433000,-500.0,0.00018904,2]
[421555013,1777871433000,-500.0,0.00018904,2]
[421555014,1777871433000,-500.0,0.00018904,2]
[421555018,1777871433000,-500.0,0.00018904,2]
[421555017,1777871433000,-500.0,0.00018904,2]
[421555019,1777871433000,-500.0,0.00018904,2]
[421555021,1777871433000,-514.3099146,0.00018904,2]
[421555020,1777871433000,-506.83942771,0.00018904,2]
[421555059,1777871433000,-291.25636,0.00019178,2]
[421555025,1777871433000,-500.0,0.00018904,2]
[421555024,1777871433000,-500.0,0.00018904,2]
[421555029,1777871433000,-411.0,0.00018922,2]
[421555033,1777871433000,-291.25637,0.0001899,2]
[421555031,1777871433000,-411.0,0.00018939,2]
[421555028,1777871433000,-411.0,0.00018908,2]
[421555026,1777871433000,-500.0,0.00018904,2]
[421555058,1777871433000,-291.25636,0.00019178,2]
[421555023,1777871433000,-500.0,0.00018904,2]
[421555069,1777871433000,-315.406239,0.000196,7]
[421555099,1777871433000,-197.08,0.00020146,2]
[421555096,1777871433000,-150.0,0.0002,2]
[421555097,1777871433000,-231.62276807,0.0002,2]
[421555098,1777871433000,-156.0,0.00020145,5]
[421555100,1777871433000,-4066.20700405,0.00020301,2]
[421555095,1777871433000,-150.0,0.0002,2]
[421555104,1777871433000,-3675.0,0.00020553,2]
[421555101,1777871433000,-2709.30010522,0.0002031,2]
[421555102,1777871433000,-831.7,0.00020381,2]
[421555103,1777871433000,-823.0,0.00020545,2]
[421555106,1777871433000,-197.08,0.00020895,2]
[421555108,1777871433000,-2463.0,0.00020903,2]
[421555094,1777871433000,-150.0,0.0002,2]
[421555107,1777871433000,-500.0,0.000209,7]
[421555105,1777871433000,-1692.0,0.00020857,2]
[421555109,1777871433000,-928.0,0.00020903,2]
[421555112,1777871433000,-150.99,0.00020951,2]
[421555113,1777871433000,-10356.2,0.00020951,2]
[421555110,1777871433000,-750.0,0.00020925,2]
[421555111,1777871433000,-150.0,0.00020925,7]
[421555114,1777871433000,-11994.59,0.00020951,2]
[421555115,1777871433000,-7194.74,0.00020951,2]
[421555117,1777871433000,-4483.95,0.00020951,2]
[421555118,1777871433000,-500.0,0.00020953,2]
[421555119,1777871433000,-500.0,0.00020953,2]
[421555060,1777871433000,-291.25637,0.00019178,2]
[421555116,1777871433000,-9999.99,0.00020951,2]
[421555091,1777871433000,-180.0,0.0002,2]
[421555034,1777871433000,-291.25636,0.0001899,2]
[421555087,1777871433000,-456.0,0.0002,2]
[421555070,1777871433000,-501.59463972,0.00019654,2]
[421555061,1777871433000,-291.25637,0.00019178,2]
[421555063,1777871433000,-500.0,0.00019178,2]
[421555066,1777871433000,-2000.0,0.00019463,2]
[421555064,1777871433000,-12184.07,0.00019178,2]
[421555065,1777871433000,-150.0,0.00019282,2]
[421555073,1777871433000,-200.0,0.000199,2]
[421555071,1777871433000,-151.0,0.000197,2]
[421555081,1777871433000,-152.0,0.0002,2]
[421555080,1777871433000,-1056.60302442,0.0002,2]
[421555077,1777871433000,-3950.0,0.0002,2]
[421555076,1777871433000,-178.41311344,0.0002,2]
[421555072,1777871433000,-500.0,0.00019736,2]
[421555062,1777871433000,-500.0,0.00019178,2]
[421555079,1777871433000,-200.0,0.0002,2]
[421555092,1777871433000,-277.0,0.0002,2]
[421555085,1777871433000,-399.0,0.0002,2]
[421555088,1777871433000,-1401.0,0.0002,2]
[421555090,1777871433000,-629.0,0.0002,2]
[421555086,1777871433000,-334.0,0.0002,2]
[421555089,1777871433000,-454.0,0.0002,2]
[421555082,1777871433000,-2562.3422753,0.0002,2]
[421555083,1777871433000,-212.29,0.0002,2]
[421555093,1777871433000,-2194.0,0.0002,2]
[421555078,1777871433000,-1308.9812858,0.0002,2]
[421555075,1777871433000,-1550.51821281,0.0002,2]
[421555084,1777871433000,-400.0,0.0002,2]
[421555074,1777871433000,-1981.0,0.0002,2]
[421555163,1777871434000,-629.0,0.00022,2]
[421555153,1777871434000,-176.75690271,0.00021973,2]
[421555165,1777871434000,-277.0,0.00022,2]
[421555164,1777871434000,-180.0,0.00022,2]
[421555149,1777871434000,-5000.0,0.00021918,2]
[421555154,1777871434000,-500.0,0.00021973,2]
[421555150,1777871434000,-500.0,0.00021973,2]
[421555148,1777871434000,-200.0,0.000219,2]
[421555147,1777871434000,-10258.2913,0.000219,2]
[421555155,1777871434000,-500.0,0.00021973,2]
[421555162,1777871434000,-454.0,0.00022,2]
[421555159,1777871434000,-334.0,0.00022,2]
[421555168,1777871434000,-182.17052699,0.00022407,2]
[421555160,1777871434000,-456.0,0.00022,2]
[421555157,1777871434000,-450.0,0.00022,2]
[421555158,1777871434000,-399.0,0.00022,2]
[421555161,1777871434000,-1401.0,0.00022,2]
[421555167,1777871434000,-831.7,0.00022353,2]
[421555177,1777871434000,-612.63145298,0.00022521,2]
[421555169,1777871434000,-182.17052697,0.00022407,2]
[421555172,1777871434000,-1152.0,0.00022469,2]
[421555170,1777871434000,-182.17052697,0.00022407,2]
[421555176,1777871434000,-1000.0,0.00022521,2]
[421555146,1777871434000,-244.0,0.000219,5]
[421555156,1777871434000,-80535.71409815,0.00022,4]
[421555151,1777871434000,-500.0,0.00021973,2]
[421555134,1777871434000,-277.0,0.00021,2]
[421555143,1777871434000,-918.0,0.000215,2]
[421555121,1777871434000,-1351.0,0.00020972,2]
[421555120,1777871434000,-3535.0,0.00020972,2]
[421555124,1777871434000,-500.0,0.00020999,2]
[421555128,1777871434000,-334.0,0.00021,2]
[421555123,1777871434000,-500.0,0.00020999,2]
[421555122,1777871434000,-1267.0,0.00020972,2]
[421555125,1777871434000,-200.0,0.00020999,2]
[421555126,1777871434000,-57323.80949265,0.00021,2]
[421555127,1777871434000,-399.0,0.00021,2]
[421555140,1777871434000,-246.97,0.00021406,2]
[421555131,1777871434000,-454.0,0.00021,2]
[421555130,1777871434000,-1401.0,0.00021,2]
[421555171,1777871434000,-169.76,0.00022466,2]
[421555129,1777871434000,-456.0,0.00021,2]
[421555135,1777871434000,-2194.0,0.00021,2]
[421555132,1777871434000,-629.0,0.00021,2]
[421555136,1777871434000,-396.44174893,0.00021194,2]
[421555133,1777871434000,-180.0,0.00021,2]
[421555139,1777871434000,-2947.64686291,0.00021231,2]
[421555138,1777871434000,-168.84,0.00021227,2]
[421555137,1777871434000,-280.0,0.00021204,3]
[421555141,1777871434000,-2000.0,0.0002141,2]
[421555142,1777871434000,-901.0,0.000215,2]
[421555145,1777871434000,-299.0,0.00021898,5]
[421555152,1777871434000,-500.0,0.00021973,2]
[421555144,1777871434000,-881.0,0.000215,2]
[421555173,1777871434000,-1000.0,0.00022521,2]
[421555166,1777871434000,-2194.0,0.00022,2]
[421555175,1777871434000,-1000.0,0.00022521,2]
[421555204,1777871434000,-151.37,0.00023437,2]
[421555209,1777871434000,-928.0,0.00023903,2]
[421555214,1777871434000,-1267.0,0.00023972,2]
[421555213,1777871434000,-1351.0,0.00023972,2]
[421555210,1777871434000,-500.0,0.00023912,2]
[421555205,1777871434000,-2400.0,0.0002353,2]
[421555212,1777871434000,-3535.0,0.00023972,2]
[421555211,1777871434000,-400.82271512,0.0002397,2]
[421555215,1777871434000,-500.0,0.00024,2]
[421555217,1777871434000,-334.0,0.00024,2]
[421555218,1777871434000,-456.0,0.00024,2]
[421555216,1777871434000,-399.0,0.00024,2]
[421555219,1777871434000,-1401.0,0.00024,2]
[421555227,1777871434000,-415.794738,0.00024,2]
[421555224,1777871434000,-415.794738,0.00024,2]
[421555223,1777871434000,-151.0,0.00024,2]
[421555225,1777871434000,-415.794738,0.00024,2]
[421555221,1777871434000,-629.0,0.00024,2]
[421555220,1777871434000,-454.0,0.00024,2]
[421555174,1777871434000,-1000.0,0.00022521,2]
[421555226,1777871434000,-415.794738,0.00024,2]
[421555229,1777871434000,-277.0,0.00024,2]
[421555230,1777871434000,-2194.0,0.00024,2]
[421555228,1777871434000,-180.0,0.00024,2]
[421555231,1777871434000,-354.545695,0.00024,10]
[421555208,1777871434000,-2463.0,0.00023903,2]
[421555207,1777871434000,-500.0,0.00023553,2]
[421555222,1777871434000,-151.0,0.00024,2]
[421555200,1777871434000,-181.84407951,0.00023265,2]
[421555206,1777871434000,-500.0,0.00023553,2]
[421555179,1777871434000,-4066.20700405,0.00022731,2]
[421555189,1777871434000,-629.0,0.00023,2]
[421555180,1777871434000,-2709.30010522,0.00022759,2]
[421555181,1777871434000,-361.24,0.00022934,2]
[421555185,1777871434000,-334.0,0.00023,2]
[421555183,1777871434000,-25000.0,0.00023,2]
[421555182,1777871434000,-271.39,0.00022934,2]
[421555178,1777871434000,-500.0,0.00022554,2]
[421555187,1777871434000,-1401.0,0.00023,2]
[421555184,1777871434000,-399.0,0.00023,2]
[421555188,1777871434000,-454.0,0.00023,2]
[421555190,1777871434000,-180.0,0.00023,2]
[421555192,1777871434000,-2194.0,0.00023,2]
[421555186,1777871434000,-456.0,0.00023,2]
[421555199,1777871434000,-245.83720835,0.00023068,2]
[421555193,1777871434000,-152.090703,0.00023,2]
[421555198,1777871434000,-1000.0,0.00023068,2]
[421555196,1777871434000,-261.26257715,0.00023068,2]
[421555197,1777871434000,-409.23998746,0.00023068,2]
[421555194,1777871434000,-289.67,0.00023055,2]
[421555191,1777871434000,-277.0,0.00023,2]
[421555203,1777871434000,-359.1424716,0.00023377,9]
[421555202,1777871434000,-1000.0,0.00023377,9]
[421555195,1777871434000,-244.52,0.00023055,2]
[421555201,1777871434000,-2000.0,0.00023356,2]
[421555252,1777871435000,-500.0,0.00024454,2]
[421555258,1777871435000,-502.57644709,0.0002463,2]
[421555263,1777871435000,-151.0,0.00024658,2]
[421555260,1777871435000,-150.0,0.00024658,2]
[421555261,1777871435000,-735.14,0.00024658,2]
[421555257,1777871435000,-2947.64686291,0.00024593,2]
[421555259,1777871435000,-500.0,0.00024657,2]
[421555262,1777871435000,-1000.0,0.00024658,2]
[421555265,1777871435000,-209.49,0.00024658,2]
[421555264,1777871435000,-208.32,0.00024658,2]
[421555271,1777871435000,-347.04006807,0.00025,2]
[421555268,1777871435000,-208.32,0.00024946,7]
[421555267,1777871435000,-3000.0,0.00024932,2]
[421555270,1777871435000,-411.58108134,0.00025,2]
[421555272,1777871435000,-465.61279268,0.00025,2]
[421555269,1777871435000,-209.49,0.00024946,7]
[421555274,1777871435000,-456.52156229,0.00025,2]
[421555273,1777871435000,-1405.92189461,0.00025,2]
[421555249,1777871435000,-194.724221,0.00024324,2]
[421555275,1777871435000,-642.39465111,0.00025,2]
[421555266,1777871435000,-1000.0,0.00024871,2]
[421555251,1777871435000,-280.0,0.00024365,5]
[421555243,1777871435000,-249.74,0.0002429,2]
[421555254,1777871435000,-1000.0,0.0002446,2]
[421555276,1777871435000,-190.46086277,0.00025,2]
[421555232,1777871435000,-4789.988655,0.00024,2]
[421555233,1777871435000,-4789.988655,0.00024,2]
[421555235,1777871435000,-4789.988655,0.00024,2]
[421555238,1777871435000,-151.0,0.00024,2]